fUSD/lending_fUSD_20250124
["ID","MTS","AMOUNT","RATE_DAILY","PERIOD"]
[350273852,1737757832534,-437.93,0.00018178,2]
[350273853,1737757832544,-150.0,0.00018178,2]
[350273854,1737757832554,-150.0,0.00018178,2]
[350273855,1737757832563,-150.0,0.00018178,2]
[350273856,1737757832572,-150.0,0.00018178,2]
[350273857,1737757832582,-150.0,0.00018178,2]
[350273858,1737757832591,-150.0,0.00018178,2]
[350273859,1737757832600,-437.93,0.00018178,2]
[350273860,1737757832610,-982.28,0.00018178,2]
[350273861,1737757832620,-700.0,0.00018234,2]
[350273862,1737757832630,-1056.28,0.00018235,2]
[350273863,1737757832640,-250.0,0.00018276,2]
[350273864,1737757832649,-2000.0,0.00018323,2]
[350273865,1737757832659,-188.19,0.00018402,2]
[350273866,1737757832668,-437.93,0.00018478,2]
[350273867,1737757832678,-150.0,0.00018478,2]
[350273868,1737757832687,-150.0,0.00018478,2]
[350273869,1737757832697,-150.0,0.00018478,2]
[350273870,1737757832706,-2131.0,0.000185,2]
[350273871,1737757832716,-174.53,0.00018557,2]
[350273872,1737757832726,-824.86,0.00018581,2]
[350273873,1737757832735,-981.79,0.000186,2]
[350273874,1737757832744,-151.16,0.000186,2]
[350273875,1737757832753,-437.93,0.000186,2]
[350273876,1737757832763,-150.0,0.000186,2]
[350273877,1737757832773,-150.0,0.000186,2]
[350273878,1737757832783,-150.0,0.00018712,2]
[350273879,1737757832792,-150.0,0.00018712,2]
[350273880,1737757832803,-437.93,0.00018712,2]
[350273881,1737757832813,-150.0,0.00018712,2]
[350273882,1737757832822,-150.0,0.00018712,2]
[350273883,1737757832831,-437.93,0.00018712,2]
[350273884,1737757832840,-883.95,0.00018712,2]
[350273886,1737757832850,-437.93,0.00018712,2]
[350273888,1737757832859,-150.0,0.00018712,2]
[350273890,1737757832868,-150.0,0.00018712,2]
[350273892,1737757832878,-302.81,0.00018712,2]
[350273893,1737757832887,-449.48,0.00018712,2]
[350273895,1737757832897,-150.0,0.00018712,2]
[350273897,1737757832906,-150.0,0.00018712,2]
[350273900,1737757832916,-150.0,0.00018878,2]
[350273901,1737757832925,-150.0,0.00018878,2]
[350273903,1737757832935,-299.35,0.00018878,2]
[350273905,1737757832944,-150.0,0.00018878,2]
[350273907,1737757832953,-437.93,0.00018878,2]
[350273909,1737757832962,-304.94,0.00018878,2]
[350273911,1737757832972,-176.73,0.00018974,2]
[350273913,1737757832982,-500.0,0.00018986,2]
[350273915,1737757832991,-430.64066539,0.00018994,2]
[350273917,1737757833001,-977.18996205,0.00019,2]
[350273920,1737757833011,-650.0,0.00019,2]
[350273921,1737757833021,-772.56,0.00019123,2]
[350273924,1737757833031,-10000.0,0.000192,2]
[350273925,1737757833043,-3000.0,0.0001921,2]
[350273927,1737757833052,-600.0,0.00019235,2]
[350273929,1737757833062,-394.9593,0.00019238,2]
[350273931,1737757833071,-158.47563007,0.00019297,2]
[350273933,1737757833083,-7105.41726396,0.00019298,2]
[350273936,1737757833096,-5160.98592671,0.00019298,2]
[350273938,1737757833106,-2500.0,0.00019298,2]
[350273940,1737757833116,-251.1,0.00019299,2]
[350273942,1737757833127,-1860.394,0.00019299,2]
[350273944,1737757833136,-188.19,0.00019322,2]
[350273946,1737757833145,-500.0,0.00019338,2]
[350273947,1737757833155,-500.0,0.00019338,2]
[350273949,1737757833164,-500.0,0.00019338,2]
[350273951,1737757833174,-500.0,0.00019338,2]
[350273952,1737757833183,-500.0,0.00019338,2]
[350273953,1737757833194,-500.0,0.00019338,2]
[350273954,1737757833203,-500.0,0.00019338,2]
[350273955,1737757833213,-500.0,0.00019338,2]
[350273956,1737757833223,-500.0,0.00019338,2]
[350273957,1737757833232,-500.0,0.00019338,2]
[350273958,1737757833243,-500.0,0.00019338,2]
[350273959,1737757833253,-500.0,0.00019338,2]
[350273960,1737757833262,-500.0,0.00019338,2]
[350273962,1737757833271,-500.0,0.00019338,2]
[350273964,1737757833281,-500.0,0.00019338,2]
[350273966,1737757833291,-500.0,0.00019338,2]
[350273968,1737757833301,-500.0,0.00019338,2]
[350273970,1737757833310,-500.0,0.00019338,2]
[350273972,1737757833320,-500.0,0.00019338,2]
[350273974,1737757833330,-500.0,0.00019338,2]
[350273976,1737757833339,-500.0,0.00019338,2]
[350273978,1737757833348,-500.0,0.00019338,2]
[350273980,1737757833357,-500.0,0.00019338,2]
[350273982,1737757833366,-500.0,0.00019338,2]
[350273984,1737757833376,-500.0,0.00019338,2]
[350273986,1737757833385,-500.0,0.00019338,2]
[350273988,1737757833394,-500.0,0.00019338,2]
[350273990,1737757833404,-500.0,0.00019338,2]
[350273992,1737757833413,-500.0,0.00019338,2]
[350273994,1737757833423,-500.0,0.00019338,2]
[350273996,1737757833432,-500.0,0.00019338,2]
[350273998,1737757833442,-500.0,0.00019338,2]
[350274000,1737757833457,-500.0,0.00019338,2]
[350274002,1737757833467,-500.0,0.00019338,2]
[350274004,1737757833477,-500.0,0.00019338,2]
[350274006,1737757833488,-500.0,0.00019338,2]
[350274008,1737757833498,-500.0,0.00019338,2]
[350274010,1737757833509,-500.0,0.00019338,2]
[350274012,1737757833519,-500.0,0.00019338,2]
[350274014,1737757833529,-500.0,0.00019338,2]
[350274016,1737757833539,-500.0,0.00019338,2]
[350274018,1737757833549,-500.0,0.00019338,2]
[350274020,1737757833559,-500.0,0.00019338,2]
[350274022,1737757833569,-500.0,0.00019338,2]
[350274024,1737757833580,-500.0,0.00019338,2]
[350274026,1737757833590,-500.0,0.00019338,2]
[350274028,1737757833599,-500.0,0.00019338,2]
[350274030,1737757833609,-500.0,0.00019338,2]
[350274032,1737757833619,-500.0,0.00019338,2]
[350274034,1737757833629,-500.0,0.00019338,2]
[350274036,1737757833638,-500.0,0.00019338,2]
[350274038,1737757833649,-500.0,0.00019338,2]
[350274040,1737757833658,-500.0,0.00019338,2]
[350274042,1737757833668,-500.0,0.00019338,2]
[350274044,1737757833678,-500.0,0.00019338,2]
[350274046,1737757833688,-500.0,0.00019338,2]
[350274048,1737757833699,-500.0,0.00019338,2]
[350274050,1737757833709,-500.0,0.00019338,2]
[350274052,1737757833721,-500.0,0.00019338,2]
[350274054,1737757833731,-500.0,0.00019338,2]
[350274056,1737757833742,-500.0,0.00019338,2]
[350274058,1737757833752,-500.0,0.00019338,2]
[350274060,1737757833762,-500.0,0.00019338,2]
[350274062,1737757833772,-487.94365971,0.00019338,2]
[350274064,1737757833782,-500.0,0.00019338,2]
[350274066,1737757833791,-500.0,0.00019338,2]
[350274068,1737757833801,-500.0,0.00019338,2]
[350274070,1737757833811,-251.13,0.00019338,2]
[350274072,1737757833820,-185.88109802,0.00019338,2]
[350274073,1737757833830,-150.99,0.00019339,2]
[350274074,1737757833840,-166.84882602,0.00019373,2]
[350274075,1737757833849,-500.0,0.00019373,2]
[350274076,1737757833860,-500.72027652,0.00019373,2]
[350274077,1737757833871,-500.0,0.00019373,2]
[350274078,1737757833881,-261.1048,0.00019375,2]
[350274079,1737757833890,-500.0,0.00019397,2]
[350274080,1737757833900,-500.0,0.00019397,2]
[350274081,1737757833909,-500.0,0.00019397,2]
[350274082,1737757833919,-500.0,0.00019397,2]
[350274083,1737757833929,-500.0,0.00019397,2]
[350274084,1737757833939,-500.0,0.00019397,2]
[350274085,1737757833948,-410.30888646,0.00019397,2]
[350274086,1737757834006,-89.69111354,0.00019397,2]
[350274087,1737757834016,-500.0,0.00019397,2]
[350274088,1737757834026,-500.0,0.00019397,2]
[350274089,1737757834041,-500.0,0.00019397,2]
[350274090,1737757834051,-500.0,0.00019397,2]
[350274091,1737757834061,-500.0,0.00019397,2]
[350274092,1737757834071,-500.0,0.00019397,2]
[350274093,1737757834082,-500.0,0.00019397,2]
[350274094,1737757834092,-500.0,0.00019397,2]
[350274095,1737757834102,-500.0,0.00019397,2]
[350274096,1737757834112,-500.0,0.00019397,2]
[350274097,1737757834123,-500.0,0.00019397,2]
[350274098,1737757834132,-500.0,0.00019397,2]
[350274099,1737757834142,-500.0,0.00019397,2]
[350274100,1737757834152,-500.0,0.00019397,2]
[350274101,1737757834162,-500.0,0.00019397,2]
[350274102,1737757834172,-500.0,0.00019397,2]
[350274103,1737757834182,-500.0,0.00019397,2]
[350274104,1737757834192,-500.0,0.00019397,2]
[350274105,1737757834201,-500.0,0.00019397,2]
[350274106,1737757834211,-500.0,0.00019397,2]
[350274107,1737757834221,-500.0,0.00019397,2]
[350274108,1737757834230,-500.0,0.00019397,2]
[350274109,1737757834240,-500.0,0.00019397,2]
[350274110,1737757834249,-500.0,0.00019397,2]
[350274111,1737757834261,-500.0,0.00019397,2]
[350274112,1737757834271,-500.0,0.00019397,2]
[350274113,1737757834281,-500.0,0.00019397,2]
[350274114,1737757834290,-500.0,0.00019397,2]
[350274115,1737757834300,-500.0,0.00019397,2]
[350274116,1737757834309,-500.0,0.00019397,2]
[350274117,1737757834319,-340.045377,0.00019397,2]
[350274118,1737757834329,-713.14,0.00019397,2]
[350274119,1737757834339,-616.22,0.00019397,2]
[350274120,1737757834348,-500.0,0.00019397,2]
[350274121,1737757834358,-941.85,0.00019397,2]
[350274122,1737757834369,-464.695897,0.00019397,2]
[350274123,1737757834378,-112.45358745,0.00019397,2]
[350274124,1737757834392,-387.54641255,0.00019397,2]
[350274125,1737757834402,-500.0,0.00019397,2]
[350274126,1737757834412,-500.0,0.00019397,2]
[350274127,1737757834422,-500.0,0.00019397,2]
[350274128,1737757834432,-500.0,0.00019397,2]
[350274129,1737757834442,-500.0,0.00019397,2]
[350274130,1737757834452,-500.0,0.00019397,2]
[350274131,1737757834462,-500.0,0.00019397,2]
[350274132,1737757834473,-500.0,0.00019397,2]
[350274133,1737757834483,-941.66,0.00019397,2]
[350274134,1737757834493,-949.53,0.00019397,2]
[350274135,1737757834503,-754.12,0.00019397,2]
[350274136,1737757834673,-602.91,0.00019397,2]
[350274137,1737757834683,-500.0,0.00019397,2]
[350274138,1737757834693,-276.0475884,0.00019397,2]
[350274139,1737757834710,-931.4624116,0.00019397,2]
[350274140,1737757834720,-500.0,0.00019397,2]
[350274141,1737757834730,-500.0,0.00019397,2]
[350274142,1737757834740,-220.48398231,0.00019397,2]
[350274147,1737757838522,-250.73,0.00018712,2]
[350274148,1737757838532,-283.81601769,0.00019397,2]
[350274149,1737757838541,-500.0,0.00019397,2]
[350274150,1737757838550,-1477.34,0.00019397,2]
[350274151,1737757838559,-500.0,0.00019397,2]
[350274152,1737757838568,-1548.99,0.00019397,2]
[350274153,1737757838577,-576.28,0.00019397,2]
[350274154,1737757838585,-903.05,0.00019397,2]
[350274155,1737757838594,-500.0,0.00019397,2]
[350274156,1737757838603,-500.0,0.00019397,2]
[350274157,1737757838612,-500.0,0.00019397,2]
[350274158,1737757838622,-1548.01,0.00019397,2]
[350274159,1737757838631,-500.0,0.00019397,2]
[350274160,1737757838639,-500.0,0.00019397,2]
[350274161,1737757838648,-954.36,0.00019397,2]
[350274162,1737757838657,-500.0,0.00019397,2]
[350274163,1737757838667,-500.0,0.00019397,2]
[350274164,1737757838676,-674.24,0.00019397,2]
[350274165,1737757838685,-500.0,0.00019397,2]
[350274166,1737757838694,-500.0,0.00019397,2]
[350274167,1737757838703,-948.31,0.00019397,2]
[350274168,1737757838711,-500.0,0.00019397,2]
[350274169,1737757838721,-343.94,0.00019397,2]
[350274170,1737757838735,-500.0,0.00019397,2]
[350274171,1737757838745,-857.55,0.00019397,2]
[350274172,1737757838754,-500.0,0.00019397,2]
[350274173,1737757838764,-958.48,0.00019397,2]
[350274175,1737757838773,-302.37375872,0.00019397,2]
[350274177,1737757838785,-1015.02624128,0.00019397,2]
[350274179,1737757838795,-500.0,0.00019397,2]
[350274181,1737757838804,-500.0,0.00019397,2]
[350274183,1737757838813,-500.0,0.00019397,2]
[350274185,1737757838823,-500.0,0.00019397,2]
[350274187,1737757838832,-1447.16,0.00019397,2]
[350274189,1737757838842,-500.0,0.00019397,2]
[350274191,1737757838851,-500.0,0.00019397,2]
[350274193,1737757838860,-500.0,0.00019397,2]
[350274195,1737757838870,-500.0,0.00019397,2]
[350274197,1737757838879,-500.0,0.00019397,2]
[350274199,1737757838889,-433.76534477,0.00019397,2]
[350274202,1737757838900,-66.23465523,0.00019397,2]
[350274204,1737757838909,-500.0,0.00019397,2]
[350274206,1737757838918,-500.0,0.00019397,2]
[350274208,1737757838927,-605.84,0.00019397,2]
[350274210,1737757838937,-500.0,0.00019397,2]
[350274211,1737757838947,-521.4,0.00019397,2]
[350274212,1737757838957,-500.0,0.00019397,2]
[350274213,1737757838966,-500.0,0.00019397,2]
[350274214,1737757838976,-500.0,0.00019397,2]
[350274215,1737757838985,-500.0,0.00019397,2]
[350274216,1737757838994,-500.0,0.00019397,2]
[350274217,1737757839004,-500.0,0.00019397,2]
[350274218,1737757839014,-500.0,0.00019397,2]
[350274219,1737757839023,-500.0,0.00019397,2]
[350274220,1737757839033,-192.49065756,0.00019397,2]
[350274221,1737757839044,-500.0,0.00019397,2]
[350274222,1737757839054,-500.0,0.00019397,2]
[350274223,1737757839064,-500.0,0.00019398,2]
[350274224,1737757839075,-500.0,0.00019398,2]
[350274225,1737757839084,-410.69290535,0.00019398,2]
[350274226,1737757839093,-500.0,0.00019398,2]
[350274227,1737757839103,-311.42165117,0.00019398,2]
[350274228,1737757839113,-508.30711593,0.00019398,2]
[350274229,1737757839125,-434.29288853,0.00019398,2]
[350274230,1737757839136,-500.0,0.00019398,2]
[350274231,1737757839145,-500.0,0.00019398,2]
[350274232,1737757839156,-500.0,0.00019398,2]
[350274233,1737757839165,-289.14381826,0.00019398,2]
[350274236,1737757840360,-500.0,0.00019397,2]
[350274238,1737757840370,-210.85618174,0.00019398,2]
[350274239,1737757840381,-500.0,0.00019398,2]
[350274240,1737757840390,-524.27162252,0.00019398,2]
[350274241,1737757840400,-500.0,0.00019398,2]
[350274242,1737757840410,-500.0,0.00019398,2]
[350274243,1737757840419,-500.0,0.00019398,2]
[350274244,1737757840429,-318.84814366,0.00019398,2]
[350274245,1737757840598,-362.3619997,0.00019397,2]
[350274248,1737757840863,-228.1880003,0.00019397,2]
[350274249,1737757840872,-176.25625519,0.00019398,2]
[350274260,1737757843666,-683.43,0.00019397,2]
[350274261,1737757843676,-500.0,0.00019397,2]
[350274262,1737757843686,-410.43558421,0.00019397,2]
[350274263,1737757843696,-553.0,0.00019397,2]
[350274264,1737757843706,-4.89560115,0.00019398,2]
[350274265,1737757843715,-500.0,0.00019398,2]
[350274266,1737757843725,-634.26115941,0.00019398,2]
[350274267,1737757843735,-500.0,0.00019398,2]
[350274268,1737757843744,-500.0,0.00019398,2]
[350274269,1737757843754,-500.0,0.00019398,2]
[350274270,1737757843763,-500.0,0.00019398,2]
[350274271,1737757843774,-500.0,0.00019398,2]
[350274272,1737757843783,-500.0,0.00019398,2]
[350274273,1737757843792,-500.0,0.00019398,2]
[350274274,1737757843801,-500.0,0.00019398,2]
[350274275,1737757843810,-500.0,0.00019398,2]
[350274276,1737757843819,-500.0,0.00019398,2]
[350274277,1737757843829,-500.0,0.00019398,2]
[350274278,1737757843839,-500.0,0.00019398,2]
[350274279,1737757843849,-500.0,0.00019398,2]
[350274280,1737757843858,-500.0,0.00019398,2]
[350274281,1737757843868,-500.0,0.00019398,2]
[350274282,1737757843878,-500.0,0.00019398,2]
[350274283,1737757843888,-500.0,0.00019398,2]
[350274284,1737757843897,-500.0,0.00019398,2]
[350274285,1737757843907,-500.0,0.00019398,2]
[350274286,1737757843918,-500.0,0.00019398,2]
[350274287,1737757843927,-500.0,0.00019398,2]
[350274288,1737757843937,-500.0,0.00019398,2]
[350274289,1737757843946,-500.0,0.00019398,2]
[350274290,1737757843955,-500.0,0.00019398,2]
[350274291,1737757843964,-500.0,0.00019398,2]
[350274292,1737757843974,-200.0,0.00019398,2]
[350274293,1737757843983,-500.0,0.00019398,2]
[350274294,1737757843993,-500.0,0.00019398,2]
[350274295,1737757844003,-500.0,0.00019398,2]
[350274296,1737757844012,-500.0,0.00019398,2]
[350274297,1737757844021,-500.0,0.00019398,2]
[350274298,1737757844030,-500.0,0.00019398,2]
[350274299,1737757844043,-500.0,0.00019398,2]
[350274300,1737757844053,-500.0,0.00019398,2]
[350274301,1737757844062,-500.0,0.00019398,2]
[350274302,1737757844071,-500.0,0.00019398,2]
[350274303,1737757844081,-500.0,0.00019398,2]
[350274304,1737757844091,-500.0,0.00019398,2]
[350274305,1737757844100,-500.0,0.00019398,2]
[350274306,1737757844110,-500.0,0.00019398,2]
[350274307,1737757844121,-511.14317639,0.00019398,2]
[350274308,1737757844131,-500.0,0.00019398,2]
[350274309,1737757844142,-500.0,0.00019398,2]
[350274310,1737757844151,-500.0,0.00019398,2]
[350274311,1737757844161,-500.0,0.00019398,2]
[350274312,1737757844171,-500.0,0.00019398,2]
[350274313,1737757844180,-500.0,0.00019398,2]
[350274314,1737757844189,-500.0,0.00019398,2]
[350274315,1737757844198,-500.0,0.00019398,2]
[350274316,1737757844207,-500.0,0.00019398,2]
[350274317,1737757844216,-500.0,0.00019398,2]
[350274318,1737757844226,-500.0,0.00019398,2]
[350274319,1737757844235,-500.0,0.00019398,2]
[350274320,1737757844245,-500.0,0.00019398,2]
[350274321,1737757844254,-500.0,0.00019398,2]
[350274322,1737757844263,-500.0,0.00019398,2]
[350274324,1737757844272,-500.0,0.00019398,2]
[350274325,1737757844282,-500.0,0.00019398,2]
[350274326,1737757844292,-500.0,0.00019398,2]
[350274327,1737757844302,-500.0,0.00019398,2]
[350274328,1737757844311,-500.0,0.00019398,2]
[350274329,1737757844321,-500.0,0.00019398,2]
[350274330,1737757844330,-500.0,0.00019398,2]
[350274331,1737757844340,-500.0,0.00019398,2]
[350274332,1737757844349,-500.0,0.00019398,2]
[350274333,1737757844359,-500.0,0.00019398,2]
[350274334,1737757844368,-500.0,0.00019398,2]
[350274335,1737757844378,-500.0,0.00019398,2]
[350274336,1737757844388,-500.0,0.00019398,2]
[350274337,1737757844398,-500.0,0.00019398,2]
[350274338,1737757844408,-508.45590278,0.00019398,2]
[350274339,1737757844418,-500.0,0.00019398,2]
[350274340,1737757844428,-500.0,0.00019398,2]
[350274341,1737757844438,-500.0,0.00019398,2]
[350274342,1737757844448,-500.0,0.00019398,2]
[350274343,1737757844457,-500.0,0.00019398,2]
[350274344,1737757844466,-500.0,0.00019398,2]
[350274345,1737757844475,-500.0,0.00019398,2]
[350274346,1737757844484,-507.84520989,0.00019398,2]
[350274347,1737757844494,-500.0,0.00019398,2]
[350274348,1737757844504,-500.0,0.00019398,2]
[350274349,1737757844514,-500.0,0.00019398,2]
[350274350,1737757844524,-500.0,0.00019398,2]
[350274351,1737757844533,-500.0,0.00019398,2]
[350274352,1737757844543,-638.73630753,0.00019398,2]
[350274353,1737757844553,-626.69701753,0.00019398,2]
[350274354,1737757844562,-500.0,0.00019398,2]
[350274355,1737757844572,-500.0,0.00019398,2]
[350274356,1737757844581,-500.0,0.00019398,2]
[350274357,1737757844591,-503.63525526,0.00019398,2]
[350274358,1737757844600,-500.0,0.00019398,2]
[350274359,1737757844610,-500.0,0.00019398,2]
[350274360,1737757844619,-500.0,0.00019398,2]
[350274361,1737757844628,-500.0,0.00019398,2]
[350274362,1737757844638,-500.0,0.00019398,2]
[350274363,1737757844647,-500.0,0.00019398,2]
[350274364,1737757844656,-217.46478585,0.00019398,2]
[350274398,1737757846547,-301.97918085,0.00019398,2]
[350274399,1737757846556,-500.0,0.00019398,2]
[350274400,1737757846566,-232.0855804,0.00019398,2]
[350274401,1737757846585,-267.9144196,0.00019398,2]
[350274402,1737757846595,-500.0,0.00019398,2]
[350274403,1737757846604,-307.29045101,0.00019398,2]
[350274405,1737757846886,-69.62022431,0.00019398,2]
[350274407,1737757935625,172.14,0.00010137,2]
[350274410,1737758741097,-950.65,0.00016204,2]
[350274411,1737758741120,-250.0,0.00018004,2]
[350274412,1737758741142,-176.73,0.00018082,2]
[350274413,1737758741164,-150.0,0.0001811,2]
[350274414,1737758741186,-156.61,0.00018123,30]
[350274415,1737758741210,-250.4,0.00018135,2]
[350274416,1737758741232,-248.86,0.00018135,2]
[350274417,1737758741254,-250.18,0.00018136,2]
[350274418,1737758741275,-254.27,0.00018136,2]
[350274419,1737758741298,-252.97,0.00018136,2]
[350274420,1737758741328,-254.89,0.00018136,2]
[350274421,1737758741350,-247.16,0.00018136,2]
[350274422,1737758741373,-247.83,0.00018136,2]
[350274423,1737758741394,-254.07,0.00018136,2]
[350274424,1737758741421,-251.87,0.00018136,2]
[350274425,1737758741445,-247.49,0.00018136,2]
[350274426,1737758741467,-254.18,0.00018137,2]
[350274427,1737758741490,-252.16,0.00018137,2]
[350274428,1737758741512,-248.91,0.00018137,2]
[350274429,1737758741536,-252.65,0.00018137,2]
[350274430,1737758741560,-252.03,0.00018137,2]
[350274431,1737758741582,-245.11,0.00018137,2]
[350274432,1737758741605,-245.8,0.00018137,2]
[350274433,1737758741628,-248.0,0.00018137,2]
[350274434,1737758741650,-254.57,0.00018137,2]
[350274435,1737758741672,-254.31,0.00018137,2]
[350274436,1737758741693,-254.16,0.00018137,2]
[350274437,1737758741714,-246.64,0.00018137,2]
[350274438,1737758741735,-253.57,0.00018137,2]
[350274439,1737758741756,-252.39,0.00018137,2]
[350274440,1737758741777,-249.76,0.00018137,2]
[350274441,1737758741799,-245.23,0.00018137,2]
[350274442,1737758741821,-253.91,0.00018137,2]
[350274443,1737758741842,-247.0,0.00018138,2]
[350274444,1737758741864,-246.53,0.00018138,2]
[350274445,1737758741886,-253.26,0.00018138,2]
[350274446,1737758741907,-251.64,0.00018138,2]
[350274447,1737758741928,-248.4,0.00018138,2]
[350274448,1737758741949,-251.97,0.00018138,2]
[350274449,1737758741970,-246.05,0.00018138,2]
[350274450,1737758741991,-254.59,0.00018138,2]
[350274451,1737758742012,-254.19,0.00018139,2]
[350274452,1737758742034,-246.68,0.00018139,2]
[350274453,1737758742056,-249.58,0.00018139,2]
[350274454,1737758742077,-250.73,0.00018139,2]
[350274455,1737758742099,-184.78628066,0.00018139,2]
[350274456,1737758796471,155.64,0.00010137,2]
[350274458,1737758851095,-291.91843973,0.00018138,2]
[350274459,1737758919838,1759.18827317,0.0002,120]
[350274467,1737759031465,-575.115,0.00018111,2]
[350274468,1737759031505,-428.035,0.00018111,2]
[350274469,1737759031517,-249.28,0.00018138,2]
[350274470,1737759031528,-252.62,0.00018138,2]
[350274471,1737759031537,-247.14,0.00018138,2]
[350274472,1737759031547,-247.87,0.00018138,2]
[350274473,1737759031556,-246.89,0.00018138,2]
[350274474,1737759031566,-101.17000005,0.00018138,2]
[350274475,1737759031623,-144.26999995,0.00018138,2]
[350274476,1737759031633,-246.41,0.00018138,2]
[350274477,1737759031643,-245.21,0.00018138,2]
[350274478,1737759031652,-253.31,0.00018138,2]
[350274479,1737759031661,-251.06,0.00018138,2]
[350274480,1737759031670,-254.15,0.00018138,2]
[350274481,1737759031679,-247.89,0.00018138,2]
[350274482,1737759031690,-254.8,0.00018138,2]
[350274483,1737759031699,-69.47371934,0.00018139,2]
[350274484,1737759031708,-253.94,0.00018139,2]
[350274485,1737759031718,-250.27,0.00018139,2]
[350274486,1737759031727,-251.72,0.00018139,2]
[350274487,1737759031736,-246.74,0.00018139,2]
[350274488,1737759031746,-246.53,0.00018139,2]
[350274489,1737759031755,-193.6286564,0.00018139,2]
[350274490,1737759031766,-55.6713436,0.00018139,2]
[350274491,1737759031776,-500.0,0.00018139,2]
[350274492,1737759031786,-605.23326853,0.00018139,2]
[350274493,1737759031795,-250.0,0.00018153,2]
[350274494,1737759031804,-186.44,0.00018156,2]
[350274495,1737759031813,-162.11,0.00018192,2]
[350274496,1737759031822,-839.42,0.00018192,2]
[350274497,1737759031831,-2511.36897672,0.00018234,2]
[350274498,1737759031843,-8078.60900422,0.00018234,2]
[350274499,1737759031858,-1862.130001,0.00018234,2]
[350274500,1737759031869,-1919.85,0.00018234,2]
[350274501,1737759031880,-4705.92887821,0.00018234,2]
[350274508,1737759037487,-623.37117371,0.00018234,2]
[350274509,1737759037499,-4198.74196614,0.00018234,2]
[350274510,1737759037509,-250.0,0.00018275,2]
[350274511,1737759037521,-1000.0,0.0001841,2]
[350274512,1737759037530,-608.36,0.00018441,2]
[350274513,1737759037539,-950.65,0.00018468,2]
[350274514,1737759037549,-150.0,0.00018472,2]
[350274515,1737759037559,-1062.23,0.00018492,2]
[350274516,1737759037568,-1100.0,0.000189,6]
[350274517,1737759037577,-503.0,0.00018959,2]
[350274518,1737759037586,-500.0,0.00018986,2]
[350274519,1737759037595,-12557.82,0.00019,2]
[350274520,1737759037605,-427.15934284,0.0001901,2]
[350274521,1737759037614,-3000.0,0.000192,2]
[350274522,1737759037624,-500.0,0.00019235,2]
[350274523,1737759037633,-4842.97056289,0.00019297,2]
[350274524,1737759037643,-6394.8755376,0.00019297,2]
[350274525,1737759037652,-186.44,0.00019366,2]
[350274526,1737759037662,-251.21,0.00019396,2]
[350274527,1737759037672,-248.96,0.00019396,2]
[350274528,1737759037681,-500.0,0.00019396,2]
[350274529,1737759037691,-374.50138969,0.00019396,2]
[350274530,1737759037700,-500.0,0.00019396,2]